fUSD/lending_fUSD_20241104
["ID","MTS","AMOUNT","RATE_DAILY","PERIOD"]
[341298375,1730743759120,-500.0,0.00032876,2]
[341298376,1730743759144,-500.0,0.00032876,2]
[341298377,1730743759169,-500.0,0.00032876,2]
[341298378,1730743759195,-500.0,0.00032876,2]
[341298379,1730743759221,-543.28,0.00032876,2]
[341298380,1730743759246,-500.0,0.00032876,2]
[341298381,1730743759274,-163.87122837,0.00032876,2]
[341298382,1730743759298,-500.0,0.00032876,2]
[341298383,1730743759323,-500.0,0.00032876,2]
[341298384,1730743759347,-518.08,0.00032876,2]
[341298385,1730743759370,-500.0,0.00032876,2]
[341298386,1730743759395,-500.0,0.00032876,2]
[341298387,1730743759423,-500.0,0.00032876,2]
[341298388,1730743759448,-500.0,0.00032876,2]
[341298389,1730743759472,-525.19,0.00032876,2]
[341298390,1730743759497,-500.0,0.00032876,2]
[341298391,1730743759522,-500.0,0.00032876,2]
[341298392,1730743759549,-500.0,0.00032876,2]
[341298393,1730743759574,-500.0,0.00032876,2]
[341298394,1730743759598,-162.6695822,0.00032876,2]
[341298395,1730743759623,-500.0,0.00032876,2]
[341298396,1730743759647,-500.0,0.00032876,2]
[341298397,1730743759673,-282.14907745,0.00032876,2]
[341298398,1730743759698,-500.0,0.00032876,2]
[341298399,1730743759721,-500.0,0.00032876,2]
[341298400,1730743759745,-500.0,0.00032876,2]
[341298401,1730743759768,-524.73,0.00032876,2]
[341298402,1730743759792,-204.06125217,0.00032876,2]
[341298403,1730743759815,-500.0,0.00032876,2]
[341298404,1730743759838,-500.0,0.00032876,2]
[341298405,1730743759861,-512.82,0.00032876,2]
[341298406,1730743759884,-500.0,0.00032876,2]
[341298407,1730743759908,-500.0,0.00032876,2]
[341298408,1730743759937,-500.0,0.00032876,2]
[341298409,1730743759960,-542.61,0.00032876,2]
[341298410,1730743759985,-500.0,0.00032876,2]
[341298411,1730743760012,-500.0,0.00032876,2]
[341298412,1730743760036,-500.0,0.00032876,2]
[341298413,1730743760062,-332.41086572,0.00032876,2]
[341298414,1730743760087,-500.0,0.00032876,2]
[341298415,1730743760113,-568.81,0.00032876,2]
[341298416,1730743760138,-500.0,0.00032876,2]
[341298417,1730743760163,-500.0,0.00032876,2]
[341298418,1730743760186,-500.0,0.00032876,2]
[341298419,1730743760212,-196.05932708,0.00032876,2]
[341298420,1730743760236,-500.0,0.00032876,2]
[341298421,1730743760263,-500.0,0.00032876,2]
[341298422,1730743760286,-502.13077447,0.00032876,2]
[341298423,1730743760309,-500.0,0.00032876,2]
[341298424,1730743760332,-500.0,0.00032876,2]
[341298425,1730743760355,-500.0,0.00032876,2]
[341298426,1730743760381,-500.0,0.00032876,2]
[341298427,1730743760408,-500.0,0.00032876,2]
[341298428,1730743760434,-500.0,0.00032876,2]
[341298429,1730743760461,-500.0,0.00032876,2]
[341298430,1730743760488,-500.0,0.00032876,2]
[341298431,1730743760515,-500.0,0.00032876,2]
[341298432,1730743760538,-500.0,0.00032876,2]
[341298433,1730743760561,-500.0,0.00032876,2]
[341298434,1730743760584,-500.0,0.00032876,2]
[341298435,1730743760609,-500.0,0.00032876,2]
[341298436,1730743760634,-500.0,0.00032876,2]
[341298437,1730743760659,-500.0,0.00032876,2]
[341298438,1730743760683,-500.0,0.00032876,2]
[341298439,1730743760708,-613.27,0.00032876,2]
[341298440,1730743760733,-621.54,0.00032876,2]
[341298441,1730743760758,-469.1,0.00032876,2]
[341298442,1730743760784,-500.0,0.00032876,2]
[341298443,1730743760810,-500.0,0.00032876,2]
[341298444,1730743760834,-500.0,0.00032876,2]
[341298445,1730743760858,-500.0,0.00032876,2]
[341298446,1730743760884,-526.24,0.00032876,2]
[341298447,1730743760908,-150.42073382,0.00032876,2]
[341298448,1730743760933,-500.0,0.00032876,2]
[341298449,1730743760959,-500.0,0.00032876,2]
[341298450,1730743760985,-500.0,0.00032876,2]
[341298451,1730743761011,-597.48,0.00032876,2]
[341298452,1730743761040,-512.9831877,0.00032876,2]
[341298453,1730743761064,-500.0,0.00032876,2]
[341298454,1730743761090,-500.0,0.00032876,2]
[341298455,1730743761115,-500.0,0.00032876,2]
[341298456,1730743761142,-500.98,0.00032876,2]
[341298457,1730743761167,-208.67634173,0.00032876,2]
[341298458,1730743761191,-500.0,0.00032876,2]
[341298459,1730743761215,-500.0,0.00032876,2]
[341298460,1730743761239,-500.0,0.00032876,2]
[341298461,1730743761264,-500.0,0.00032876,2]
[341298462,1730743761288,-500.0,0.00032876,2]
[341298463,1730743761312,-500.0,0.00032876,2]
[341298464,1730743761336,-500.0,0.00032876,2]
[341298465,1730743761361,-500.0,0.00032876,2]
[341298466,1730743761385,-500.0,0.00032876,2]
[341298467,1730743761413,-500.0,0.00032876,2]
[341298468,1730743761439,-243.61595462,0.00032876,2]
[341298469,1730743761467,-500.0,0.00032876,2]
[341298470,1730743761492,-500.0,0.00032876,2]
[341298471,1730743761519,-500.0,0.00032876,2]
[341298472,1730743761542,-327.49870246,0.00032876,2]
[341298473,1730743761568,-431.1316,0.00032876,2]
[341298474,1730743761592,-513.80856412,0.00032876,2]
[341298475,1730743761617,-500.0,0.00032876,2]
[341298476,1730743761643,-229.08351375,0.00032876,2]
[341298477,1730743761670,-500.0,0.00032876,2]
[341298478,1730743761695,-290.96781979,0.00032876,2]
[341298479,1730743761724,-500.0,0.00032876,2]
[341298480,1730743761752,-500.0,0.00032876,2]
[341298481,1730743761778,-500.0,0.00032876,2]
[341298482,1730743761802,-204.29250397,0.00032876,2]
[341298483,1730743761829,-500.0,0.00032876,2]
[341298484,1730743761856,-500.0,0.00032876,2]
[341298485,1730743761880,-150.83462361,0.00032876,2]
[341298486,1730743761904,-500.0,0.00032876,2]
[341298487,1730743761928,-551.78,0.00032876,2]
[341298488,1730743761952,-500.0,0.00032876,2]
[341298489,1730743761975,-500.0,0.00032876,2]
[341298490,1730743761999,-500.0,0.00032876,2]
[341298491,1730743762021,-500.0,0.00032876,2]
[341298492,1730743762044,-500.0,0.00032876,2]
[341298493,1730743762069,-585.04137062,0.00032876,2]
[341298494,1730743762093,-500.0,0.00032876,2]
[341298495,1730743762118,-500.0,0.00032876,2]
[341298496,1730743762143,-500.0,0.00032876,2]
[341298497,1730743762166,-500.0,0.00032876,2]
[341298498,1730743762188,-500.0,0.00032876,2]
[341298499,1730743762211,-500.0,0.00032876,2]
[341298500,1730743762238,-500.0,0.00032876,2]
[341298501,1730743762264,-199.40062242,0.00032876,2]
[341298502,1730743762287,-500.0,0.00032876,2]
[341298503,1730743762311,-500.0,0.00032876,2]
[341298504,1730743762336,-500.0,0.00032876,2]
[341298505,1730743762361,-157.81287466,0.00032876,2]
[341298506,1730743762384,-150.0,0.00032876,2]
[341298507,1730743762411,-357.97233062,0.00032876,2]
[341298508,1730743762439,-500.0,0.00032876,2]
[341298509,1730743762465,-500.0,0.00032876,2]
[341298510,1730743762494,-499.99999999,0.00032876,2]
[341298511,1730743762520,-500.0,0.00032876,2]
[341298512,1730743762545,-500.0,0.00032876,2]
[341298513,1730743762568,-500.0,0.00032876,2]
[341298514,1730743762591,-542.57,0.00032876,2]
[341298515,1730743762615,-500.0,0.00032876,2]
[341298516,1730743762638,-500.0,0.00032876,2]
[341298517,1730743762662,-500.0,0.00032876,2]
[341298518,1730743762971,-500.0,0.00032876,2]
[341298519,1730743762996,-1063.21,0.00032876,2]
[341298520,1730743763019,-547.3,0.00032876,2]
[341298521,1730743763044,-389.11838423,0.00032876,2]
[341298522,1730743763068,-500.0,0.00032876,2]
[341298523,1730743763092,-159.33,0.00033007,2]
[341298524,1730743763116,-224.77053566,0.0003305,2]
[341298525,1730743763140,-500.0,0.0003315,2]
[341298526,1730743763163,-528.05783441,0.0003315,2]
[341298527,1730743763185,-500.0,0.0003315,2]
[341298528,1730743763207,-303.58,0.0003315,2]
[341298529,1730743763229,-500.0,0.0003315,2]
[341298530,1730743763251,-613.90811237,0.0003315,2]
[341298531,1730743763275,-500.0,0.0003315,2]
[341298532,1730743763297,-605.62,0.0003315,2]
[341298533,1730743763318,-500.0,0.0003315,2]
[341298534,1730743763340,-500.0,0.0003315,2]
[341298535,1730743763363,-500.0,0.0003315,2]
[341298536,1730743763385,-500.0,0.0003315,2]
[341298537,1730743763410,-500.0,0.0003315,2]
[341298538,1730743763434,-500.0,0.0003315,2]
[341298539,1730743763457,-500.0,0.0003315,2]
[341298540,1730743763480,-500.0,0.0003315,2]
[341298541,1730743763502,-636.94714892,0.0003315,2]
[341298542,1730743763525,-500.0,0.0003315,2]
[341298543,1730743763546,-500.0,0.0003315,2]
[341298544,1730743763571,-500.0,0.0003315,2]
[341298545,1730743763593,-513.77924686,0.0003315,2]
[341298546,1730743763615,-435.79398489,0.0003315,2]
[341298547,1730743763636,-500.0,0.0003315,2]
[341298548,1730743763657,-500.0,0.0003315,2]
[341298549,1730743763680,-316.66,0.0003315,2]
[341298550,1730743763702,-279.41,0.0003315,2]
[341298551,1730743763724,-554.81,0.0003315,2]
[341298552,1730743763745,-500.0,0.0003315,2]
[341298553,1730743763769,-372.43,0.0003315,2]
[341298554,1730743763791,-500.0,0.0003315,2]
[341298555,1730743763814,-500.0,0.0003315,2]
[341298556,1730743763836,-456.46,0.0003315,2]
[341298557,1730743763858,-223.77,0.0003315,2]
[341298558,1730743763881,-468.05,0.0003315,2]
[341298559,1730743763903,-500.0,0.0003315,2]
[341298560,1730743763926,-500.0,0.0003315,2]
[341298561,1730743763950,-250.93,0.0003315,2]
[341298562,1730743763973,-536.25344019,0.0003315,2]
[341298563,1730743763998,-500.0,0.0003315,2]
[341298564,1730743764022,-549.3,0.0003315,2]
[341298565,1730743764047,-500.0,0.0003315,2]
[341298566,1730743764072,-500.0,0.0003315,2]
[341298567,1730743764095,-263.04,0.0003315,2]
[341298568,1730743764119,-500.0,0.0003315,2]
[341298569,1730743764142,-500.0,0.0003315,2]
[341298570,1730743764165,-211.86,0.0003315,2]
[341298571,1730743764188,-401.49,0.0003315,2]
[341298572,1730743764211,-336.31,0.0003315,2]
[341298573,1730743764234,-500.0,0.0003315,2]
[341298574,1730743764256,-532.10196751,0.0003315,2]
[341298575,1730743764282,-500.0,0.0003315,2]
[341298576,1730743764305,-313.84,0.0003315,2]
[341298577,1730743764328,-202.92,0.0003315,2]
[341298578,1730743764355,-500.0,0.0003315,2]
[341298579,1730743764381,-425.94000001,0.0003315,2]
[341298580,1730743764405,-500.0,0.0003315,2]
[341298581,1730743764429,-500.0,0.0003315,2]
[341298582,1730743764453,-500.0,0.0003315,2]
[341298583,1730743764478,-500.0,0.0003315,2]
[341298584,1730743764503,-557.7,0.0003315,2]
[341298585,1730743764528,-500.0,0.0003315,2]
[341298586,1730743764551,-500.0,0.0003315,2]
[341298587,1730743764576,-159.62,0.0003315,2]
[341298588,1730743764601,-190.04,0.0003315,2]
[341298589,1730743764627,-500.0,0.0003315,2]
[341298590,1730743764651,-234.46,0.0003315,2]
[341298591,1730743764675,-602.84,0.0003315,2]
[341298592,1730743764700,-610.69,0.0003315,2]
[341298593,1730743764724,-430.7,0.0003315,2]
[341298594,1730743764751,-213.19,0.0003315,2]
[341298595,1730743764776,-194.64790284,0.0003315,2]
[341298596,1730743764800,-500.0,0.0003315,2]
[341298597,1730743764824,-592.02,0.0003315,2]
[341298598,1730743764850,-473.61,0.0003315,2]
[341298599,1730743764874,-357.16,0.0003315,2]
[341298600,1730743764898,-243.21,0.0003315,2]
[341298601,1730743764921,-500.0,0.0003315,2]
[341298602,1730743764944,-500.0,0.0003315,2]
[341298603,1730743764967,-500.0,0.0003315,2]
[341298604,1730743764991,-500.0,0.0003315,2]
[341298605,1730743765015,-475.94506395,0.0003315,2]
[341298606,1730743765039,-596.8,0.0003315,2]
[341298607,1730743765063,-500.0,0.0003315,2]
[341298608,1730743765088,-500.0,0.0003315,2]
[341298609,1730743765112,-494.36,0.0003315,2]
[341298610,1730743765135,-500.0,0.0003315,2]
[341298611,1730743765158,-500.0,0.0003315,2]
[341298612,1730743765181,-205.48,0.0003315,2]
[341298613,1730743765204,-500.0,0.0003315,2]
[341298614,1730743765226,-504.11,0.0003315,2]
[341298615,1730743765248,-500.0,0.0003315,2]
[341298616,1730743765272,-1063.21,0.0003315,2]
[341298617,1730743765296,-392.35673037,0.00033173,5]
[341298618,1730743765321,-160.16668125,0.00033173,5]
[341298619,1730743765344,-500.0,0.00033173,2]
[341298620,1730743765368,-2130.98,0.00033387,2]
[341298621,1730743765392,-2130.98,0.00033405,2]
[341298622,1730743765417,-500.0,0.00033421,2]
[341298623,1730743765440,-2130.98,0.00033422,2]
[341298624,1730743765463,-542.73244189,0.00033424,2]
[341298625,1730743765485,-647.66,0.00033424,2]
[341298626,1730743765508,-371.55,0.00033424,2]
[341298627,1730743765536,-500.0,0.00033424,2]
[341298628,1730743765558,-500.0,0.00033424,2]
[341298629,1730743765580,-500.0,0.00033424,2]
[341298630,1730743765602,-500.0,0.00033424,2]
[341298631,1730743765624,-500.0,0.00033424,2]
[341298632,1730743765651,-500.0,0.00033424,2]
[341298633,1730743765676,-500.0,0.00033424,2]
[341298634,1730743765700,-500.0,0.00033424,2]
[341298635,1730743765726,-506.62036312,0.00033424,2]
[341298636,1730743765750,-500.0,0.00033424,2]
[341298637,1730743765776,-477.65201665,0.00033424,2]
[341298638,1730743765799,-398.67077927,0.00033424,2]
[341298639,1730743765823,-150.36686185,0.00033424,2]
[341298640,1730743765850,-500.0,0.00033424,2]
[341298641,1730743765874,-500.0,0.00033424,2]
[341298642,1730743765900,-500.0,0.00033424,2]
[341298643,1730743765923,-500.0,0.00033424,2]
[341298644,1730743765947,-500.0,0.00033424,2]
[341298645,1730743765970,-337.474115,0.00033424,2]
[341298646,1730743766115,-500.0,0.00033424,2]
[341298647,1730743766140,-321.45,0.00033424,2]
[341298648,1730743766164,-156.11,0.00033424,2]
[341298649,1730743766188,-320.61,0.00033424,2]
[341298650,1730743766211,-409.59,0.00033424,2]
[341298651,1730743766233,-163.33,0.00033424,2]
[341298652,1730743766259,-500.0,0.00033424,2]
[341298653,1730743766282,-500.0,0.00033424,2]
[341298654,1730743766306,-452.19,0.00033424,2]
[341298655,1730743766329,-245.75,0.00033424,2]
[341298656,1730743766354,-204.65,0.00033424,2]
[341298657,1730743766381,-543.57,0.00033424,2]
[341298658,1730743766411,-340.11,0.00033424,2]
[341298659,1730743766438,-354.9,0.00033424,2]
[341298660,1730743766463,-168.27,0.00033424,2]
[341298661,1730743766490,-500.0,0.00033424,2]
[341298662,1730743766516,-381.8,0.00033424,2]
[341298663,1730743766539,-554.88,0.00033424,2]
[341298664,1730743766564,-500.0,0.00033424,2]
[341298665,1730743766588,-500.0,0.00033424,2]
[341298666,1730743766614,-1063.21,0.00033424,2]
[341298667,1730743766638,-2130.98,0.0003344,2]
[341298668,1730743766665,-2130.98,0.00033458,2]
[341298669,1730743766689,-2130.98,0.00033475,2]
[341298670,1730743766714,-2130.98,0.00033493,2]
[341298671,1730743766738,-202.52,0.00033508,120]
[341298672,1730743766761,-2130.98,0.0003351,2]
[341298673,1730743766784,-2130.98,0.00033528,2]
[341298674,1730743766809,-2130.98,0.00033545,2]
[341298675,1730743766834,-2130.98,0.00033563,2]
[341298676,1730743766858,-2130.98,0.00033581,2]
[341298677,1730743766881,-2130.98,0.00033598,2]
[341298678,1730743766904,-172.21,0.00033608,2]
[341298679,1730743766928,-2130.98,0.00033616,2]
[341298680,1730743766951,-2130.98,0.00033633,2]
[341298681,1730743766975,-2130.98,0.00033651,2]
[341298682,1730743766999,-2130.98,0.00033668,2]
[341298683,1730743767023,-2130.98,0.00033686,2]
[341298684,1730743767045,-500.0,0.00033698,2]
[341298685,1730743767067,-500.0,0.00033698,2]
[341298686,1730743767089,-500.0,0.00033698,2]
[341298687,1730743767112,-500.0,0.00033698,2]
[341298688,1730743767135,-180.05,0.00033698,2]
[341298689,1730743767159,-500.0,0.00033698,2]
[341298690,1730743767181,-500.0,0.00033698,2]
[341298691,1730743767204,-500.0,0.00033698,2]
[341298692,1730743767226,-500.0,0.00033698,2]
[341298693,1730743767249,-232.59,0.00033698,2]
[341298694,1730743767272,-511.56,0.00033698,2]
[341298695,1730743767295,-532.8,0.00033698,2]
[341298696,1730743767318,-500.0,0.00033698,2]
[341298697,1730743767341,-500.0,0.00033698,2]
[341298698,1730743767364,-500.0,0.00033698,2]
[341298699,1730743767385,-500.0,0.00033698,2]
[341298700,1730743767411,-208.3,0.00033698,2]
[341298701,1730743767434,-500.0,0.00033698,2]
[341298702,1730743767457,-500.0,0.00033698,2]
[341298703,1730743767481,-1063.21,0.00033698,2]
[341298704,1730743767504,-2130.98,0.00033703,2]
[341298705,1730743767528,-2130.98,0.00033721,2]
[341298706,1730743767550,-200.0,0.00033773,2]
[341298707,1730743767573,-589.09,0.0003381,2]
[341298708,1730743767596,-500.0,0.00033972,2]
[341298709,1730743767622,-500.0,0.00033972,2]
[341298710,1730743767645,-500.0,0.00033972,2]
[341298711,1730743767668,-500.0,0.00033972,2]
[341298712,1730743767691,-500.0,0.00033972,2]
[341298713,1730743767713,-500.0,0.00033972,2]
[341298714,1730743767737,-500.0,0.00033972,2]
[341298715,1730743767759,-381.46456546,0.00033972,2]
[341298716,1730743767784,-500.0,0.00033972,2]
[341298717,1730743767806,-218.79265948,0.00033972,2]
[341298718,1730743767829,-500.0,0.00033972,2]
[341298719,1730743767852,-500.0,0.00033972,2]
[341298720,1730743767875,-500.0,0.00033972,2]
[341298721,1730743767898,-1063.21,0.00033972,2]
[341298722,1730743767922,-2804.8792365,0.00034006,15]
[341298723,1730743767946,-500.0,0.00034246,2]
[341298724,1730743767969,-500.0,0.00034246,2]
[341298725,1730743767992,-500.0,0.00034246,2]
[341298726,1730743768017,-526.52672358,0.00034246,2]
[341298727,1730743768040,-500.0,0.00034246,2]
[341298728,1730743768064,-500.0,0.00034246,2]
[341298729,1730743768086,-500.0,0.00034246,2]
[341298730,1730743768110,-500.0,0.00034246,2]
[341298731,1730743768133,-500.0,0.00034246,2]
[341298732,1730743768156,-500.0,0.00034246,2]
[341298733,1730743768180,-500.0,0.00034246,2]
[341298734,1730743768204,-1063.21,0.00034246,2]
[341298735,1730743768228,-269.65,0.00034367,2]
[341298736,1730743768252,-500.0,0.0003452,2]
[341298737,1730743768275,-500.0,0.0003452,2]
[341298738,1730743768299,-500.0,0.0003452,2]
[341298739,1730743768323,-500.0,0.0003452,2]
[341298740,1730743768346,-500.0,0.0003452,2]
[341298741,1730743768370,-500.0,0.0003452,2]
[341298742,1730743768396,-500.0,0.0003452,2]
[341298743,1730743768419,-500.0,0.0003452,2]
[341298744,1730743768442,-500.0,0.0003452,2]
[341298745,1730743768465,-500.0,0.0003452,2]
[341298746,1730743768489,-1063.21,0.0003452,2]
[341298747,1730743768510,-500.0,0.00034542,2]
[341298748,1730743768533,-224.77053566,0.00034592,2]
[341298749,1730743768556,-151.96,0.00034668,120]
[341298750,1730743768579,-500.0,0.00034794,2]
[341298751,1730743768602,-500.0,0.00034794,2]
[341298752,1730743768625,-383.70240998,0.00034794,2]
[341298753,1730743768648,-500.0,0.00034794,2]
[341298754,1730743768671,-500.0,0.00034794,2]
[341298755,1730743768695,-500.0,0.00034794,2]
[341298756,1730743768718,-500.0,0.00034794,2]
[341298757,1730743768742,-500.0,0.00034794,2]
[341298758,1730743768768,-500.0,0.00034794,2]
[341298759,1730743768792,-1063.21,0.00034794,2]
[341298760,1730743768817,-500.0,0.00035068,2]
[341298761,1730743768844,-500.0,0.00035068,2]
[341298762,1730743768870,-500.0,0.00035068,2]
[341298763,1730743768895,-500.0,0.00035068,2]
[341298764,1730743768919,-500.0,0.00035068,2]
[341298765,1730743768943,-500.0,0.00035068,2]
[341298766,1730743768966,-500.0,0.00035068,2]
[341298767,1730743768989,-500.0,0.00035068,2]
[341298768,1730743769013,-1063.21,0.00035068,2]
[341298769,1730743769039,-2804.8792365,0.00035236,15]
[341298770,1730743769063,-500.0,0.00035342,2]
[341298771,1730743769090,-500.0,0.00035342,2]
[341298772,1730743769114,-500.0,0.00035342,2]
[341298773,1730743769138,-500.0,0.00035342,2]
[341298774,1730743769162,-500.0,0.00035342,2]
[341298775,1730743769186,-500.0,0.00035342,2]
[341298776,1730743769210,-234.68,0.00035342,2]
[341298777,1730743769350,-501.0,0.00035342,2]
[341298778,1730743769375,-1063.21,0.00035342,2]
[341298779,1730743769400,-500.0,0.00035616,2]
[341298780,1730743769427,-500.0,0.00035616,2]
[341298781,1730743769453,-500.0,0.00035616,2]
[341298782,1730743769477,-500.0,0.00035616,2]
[341298783,1730743769502,-500.0,0.00035616,2]
[341298784,1730743769531,-500.0,0.00035616,2]
[341298785,1730743769555,-999.0,0.00035616,120]
[341298786,1730743769579,-1063.21,0.00035616,2]
[341298787,1730743769601,-500.0,0.0003589,2]
[341298788,1730743769624,-500.0,0.0003589,2]
[341298789,1730743769646,-500.0,0.0003589,2]
[341298790,1730743769671,-498.23237481,0.0003589,2]
[341298791,1730743769698,-500.0,0.0003589,2]
[341298792,1730743769723,-500.0,0.0003589,2]
[341298793,1730743769750,-1063.21,0.0003589,2]
[341298794,1730743769779,-269.65,0.0003593,2]
[341298795,1730743769804,-153.2,0.00036,31]
[341298796,1730743769828,-153.2,0.00036,31]
[341298797,1730743769854,-159.33,0.00036007,2]
[341298798,1730743769878,-555.565,0.00036047,44]
[341298799,1730743769905,-589.09,0.00036074,2]
[341298800,1730743769929,-224.77053566,0.00036134,2]
[341298801,1730743769952,-296.86760599,0.00036164,2]
[341298802,1730743769977,-500.0,0.00036164,2]
[341298803,1730743770001,-500.0,0.00036164,2]
[341298804,1730743770025,-500.0,0.00036164,2]
[341298805,1730743770050,-500.0,0.00036164,2]
[341298806,1730743770077,-1063.21,0.00036164,2]
[341298807,1730743770103,-954.32890144,0.00036301,120]
[341298808,1730743770127,-500.0,0.00036438,2]
[341298809,1730743770154,-500.0,0.00036438,2]
[341298810,1730743770179,-500.0,0.00036438,2]
[341298811,1730743770204,-500.0,0.00036438,2]
[341298812,1730743770229,-1063.21,0.00036438,2]
[341298813,1730743770255,-2804.8792365,0.00036466,15]
[341298814,1730743770278,-500.0,0.00036712,2]
[341298815,1730743770301,-220.20988836,0.00036712,2]
[341298816,1730743770326,-500.0,0.00036712,2]
[341298817,1730743770351,-500.0,0.00036712,2]
[341298818,1730743770375,-1063.21,0.00036712,2]
[341298819,1730743770401,-500.0,0.00036986,2]
[341298820,1730743770426,-500.0,0.00036986,2]
[341298821,1730743770450,-500.0,0.00036986,2]
[341298822,1730743770476,-500.0,0.00036986,30]
[341298823,1730743770500,-1063.21,0.00036986,2]
[341298824,1730743770524,-1000.0,0.00037024,2]
[341298825,1730743770547,-560.33510773,0.000372,103]
[341298826,1730743770570,-560.33510771,0.000372,103]
[341298827,1730743770594,-560.33510771,0.000372,103]
[341298828,1730743770617,-500.0,0.0003726,2]
[341298829,1730743770642,-500.0,0.0003726,2]
[341298830,1730743770666,-500.0,0.0003726,2]
[341298831,1730743770689,-1063.21,0.0003726,2]
[341298832,1730743770714,-269.65,0.00037492,2]
[341298833,1730743770739,-462.03046618,0.00037534,2]
[341298834,1730743770763,-500.0,0.00037534,2]
[341298835,1730743770787,-500.0,0.00037534,2]
[341298836,1730743770812,-1063.21,0.00037534,2]
[341298837,1730743770837,-224.77053566,0.00037676,2]
[341298838,1730743770864,-2804.8792365,0.00037696,15]
[341298839,1730743770890,-500.0,0.00037808,2]
[341298840,1730743770916,-500.0,0.00037808,2]
[341298841,1730743770941,-1063.21,0.00037808,2]
[341298842,1730743770966,-157.0,0.00037898,5]
[341298843,1730743770991,-176.75,0.00037899,120]
[341298844,1730743771015,-169.93,0.00037966,2]
[341298845,1730743771043,-153.2,0.00038,31]
[341298846,1730743771070,-153.2,0.00038,31]
[341298847,1730743771097,-153.2,0.00038,31]
[341298848,1730743771125,-153.2,0.00038,31]
[341298849,1730743771151,-283.03,0.00038082,2]
[341298850,1730743771176,-166.20816612,0.00038082,2]
[341298851,1730743771201,-1063.21,0.00038082,2]
[341298852,1730743771226,-2336.0,0.000381,2]
[341298853,1730743771251,-151.96,0.00038174,120]
[341298854,1730743771274,-749.5,0.00038306,30]
[341298855,1730743771298,-589.09,0.00038337,2]
[341298856,1730743771321,-633.36,0.00038356,2]
[341298857,1730743771344,-230148.1047,0.00038443,2]
[341298858,1730743771367,-2061.0,0.00038586,2]
[341298859,1730743771392,-560.33510771,0.00038684,112]
[341298860,1730743771422,-2804.8792365,0.00038925,15]
[341298861,1730743771447,-150.000001,0.000391,38]
[341298862,1730743771472,-224.77053566,0.00039219,2]
[341298863,1730743771497,-167.0,0.00039401,2]
[341298864,1730743771520,-202.981,0.00039767,2]
[341298865,1730743771546,-153.2,0.000399,31]
[341298866,1730743771572,-153.2,0.000399,31]
[341298867,1730743771597,-153.2,0.000399,31]
[341298868,1730743771623,-153.2,0.000399,31]
[341298869,1730743771648,-768.56823761,0.0004,120]
[341298870,1730743771799,1063.21,0.00038356,2]
[341298871,1730743771834,1063.21,0.0003863,2]
[341298872,1730743771896,1063.21,0.00038904,2]
[341298873,1730743771928,1063.22,0.00039178,2]
[341298874,1730743773277,220.0738,0.00032776,2]